[Event "57th Biel Festival ATO 2024"]
[Site "Biel"]
[Date "2024.07.16"]
[Round "1.9"]
[White "Oestmann, Lukas"]
[Black "Kern, Beat"]
[Result "1-0"]
[ECO "A53"]
[WhiteElo "1926"]
[BlackElo "1717"]
[Annotator "NA RC"]
[PlyCount "53"]
[EventDate "2024.07.03"]
[EventType "swiss"]
[EventCountry "SUI"]
[SourceTitle "playchess.com"]
[Source "ChessBase"]
[SourceQuality "1"]
[TimeControl "40/5400+30:1800+30"]

1. e4 {[%emt 0:00:04]} c6 {[%emt 0:00:16]} 2. c4 {[%emt 0:00:05]} e5 {[%emt 0:00:33]} 3. Nf3 {[%emt 0:00:10]} d6 {[%emt 0:00:36]} 4. Nc3 {[%emt 0:00:11]} Nf6 {[%emt 0:00:57]} 5. d4 {[%emt 0:00:08]} exd4 {[%emt 0:01:16]} 6. Nxd4 {[%emt 0:00:06]} Be7 {[%emt 0:01:42]} 7. Be2 {[%emt 0:00:17]} O-O {[%emt 0:00:56]} 8. Be3 {[%emt 0:02:56]} Nbd7 {[%emt 0:02:48]} 9. Qc2 {[%emt 0:02:31]} Nb6 {[%emt 0:03:34]} 10. h3 {[%emt 0:04:54]} Re8 {[%emt 0:04:06]} 11. O-O {[%emt 0:02:50]} Bf8 {[%emt 0:04:03]} 12. Bg5 {[%emt 0:03:17]} h6 {[%emt 0:02:03]} 13. Bh4 {[%emt 0:00:22]} Be7 {[%emt 0:00:57]} 14. Bg3 {[%emt 0:04:09]} Bd7 {[%emt 0:09:00]} 15. Rad1 {[%emt 0:01:05]} Nc8 {[%emt 0:01:17]} 16. Rfe1 {[%emt 0:02:14]} a6 {[%emt 0:08:45]} 17. a4 {[%emt 0:00:47]} a5 {[%emt 0:02:57]} 18. Kh1 {[%emt 0:02:18]} Qb6 {[%emt 0:02:45]} 19. f4 {[%emt 0:04:09]} Bf8 {[%emt 0:08:08]} 20. e5 {[%emt 0:05:30]} dxe5 {[%emt 0:04:29]} 21. fxe5 {[%emt 0:00:12]} Nh7 {[%emt 0:01:09]} 22. Nf3 {[%emt 0:06:33]} Be6 {[%emt 0:01:52]} 23. Bd3 {[%emt 0:01:41]} Ng5 {[%emt 0:02:23]} 24. Nxg5 {[%emt 0:02:52]} hxg5 {[%emt 0:00:37]} 25. Qe2 {[%emt 0:03:18]} Ne7 {[%emt 0:03:30]} 26. Rf1 {[%emt 0:02:48]} Qc7 {[%emt 0:03:32]} 27. Qh5 {[%emt 0:03:19]} 1-0

[Event "57th Biel Festival ATO 2024"]
[Site "Biel"]
[Date "2024.07.16"]
[Round "1.10"]
[White "Luedi, Paul"]
[Black "Jud, Marc"]
[Result "0-1"]
[ECO "D58"]
[WhiteElo "1715"]
[BlackElo "1925"]
[Annotator "RC"]
[PlyCount "104"]
[EventDate "2024.07.03"]
[EventType "swiss"]
[EventCountry "SUI"]
[SourceTitle "playchess.com"]
[Source "ChessBase"]
[SourceQuality "1"]
[TimeControl "40/5400+30:1800+30"]

1. d4 {[%emt 0:00:10]} d5 {[%emt 0:00:10]} 2. c4 {[%emt 0:00:09]} e6 {[%emt 0:00:13]} 3. Nc3 {[%emt 0:00:25]} Nf6 {[%emt 0:00:19]} 4. Bg5 {[%emt 0:00:55]} Be7 {[%emt 0:00:14]} 5. e3 {[%emt 0:00:24]} O-O {[%emt 0:00:41]} 6. Nf3 {[%emt 0:00:28]} h6 {[%emt 0:00:18]} 7. Bh4 {[%emt 0:00:38]} b6 {[%emt 0:00:39]} 8. Bxf6 {[%emt 0:02:46]} Bxf6 {[%emt 0:00:18]} 9. cxd5 {[%emt 0:00:14]} exd5 {[%emt 0:00:14]} 10. Be2 {[%emt 0:03:59]} Bb7 {[%emt 0:01:49]} 11. O-O {[%emt 0:02:49]} c5 {[%emt 0:04:25]} 12. Rc1 {[%emt 0:02:30]} c4 {[%emt 0:01:33]} 13. b3 {[%emt 0:07:59]} cxb3 {[%emt 0:01:47]} 14. Qxb3 {[%emt 0:00:40]} Na6 {[%emt 0:04:01]} 15. Rfe1 {[%emt 0:14:39]} Nc7 {[%emt 0:01:01]} 16. Bd3 {[%emt 0:03:31]} Re8 {[%emt 0:12:03]} 17. Bb1 {[%emt 0:06:37]} Ne6 {[%emt 0:03:12]} 18. a4 {[%emt 0:05:17]} Qd7 {[%emt 0:17:09]} 19. Bd3 {[%emt 0:06:05]} Rac8 {[%emt 0:08:13]} 20. Bb5 {[%emt 0:08:16]} Bc6 {[%emt 0:01:12]} 21. Bxc6 {[%emt 0:00:41]} Qxc6 {[%emt 0:01:45]} 22. Qxd5 {[%emt 0:02:45]} Qc4 {[%emt 0:01:10]} 23. Qb5 {[%emt 0:03:33]} Qc7 {[%emt 0:06:50]} 24. Qb2 {[%emt 0:01:34]} Nxd4 {[%emt 0:05:07]} 25. Nxd4 {[%emt 0:07:08]} Bxd4 {[%emt 0:00:17]} 26. exd4 {[%emt 0:02:05]} Rxe1+ {[%emt 0:00:30]} 27. Rxe1 {[%emt 0:00:50]} Qxc3 {[%emt 0:00:21]} 28. Re8+ {[%emt 0:01:45]} Kh7 {[%emt 0:00:17]} 29. Qb1+ {[%emt 0:00:18]} Qc2 {[%emt 0:01:51]} 30. Qxc2+ {[%emt 0:01:22]} Rxc2 {[%emt 0:00:04]} 31. Kf1 {[%emt 0:01:09]} Rc4 {[%emt 0:02:27]} 32. a5 {[%emt 0:05:27]} Rxd4 {[%emt 0:01:09]} 33. axb6 {[%emt 0:02:11]} axb6 {[%emt 0:00:12]} 34. Rb8 {[%emt 0:00:31]} Rb4 {[%emt 0:00:20]} 35. Ke2 {[%emt 0:00:29]} Rb2+ {[%emt 0:00:14]} 36. Ke3 {[%emt 0:00:14]} b5 {[%emt 0:01:14]} 37. h4 {[%emt 0:01:00]} h5 {[%emt 0:00:00]} 38. g3 {[%emt 0:01:41]} b4 {[%emt 0:01:53]} 39. f3 {[%emt 0:03:23]} Kg6 {[%emt 0:01:09]} 40. Kf4 {[%emt 0:00:00]} b3 {[%emt 0:00:00]} 41. Rb6+ {[%emt 0:04:42]} f6 {[%emt 0:04:41]} 42. Ke3 {[%emt 0:05:47]} Rb1 {[%emt 0:01:47]} 43. Kf4 {[%emt 0:02:54]} b2 {[%emt 0:06:38]} 44. Rb5 {[%emt 0:00:48]} Kf7 {[%emt 0:01:15]} 45. Kf5 {[%emt 0:02:25]} Rf1 {[%emt 0:04:31]} 46. Rb7+ {[%emt 0:00:31]} Kf8 {[%emt 0:06:29]} 47. Rxb2 {[%emt 0:00:20]} Rxf3+ {[%emt 0:00:05]} 48. Kg6 {[%emt 0:00:22]} Rxg3+ {[%emt 0:00:18]} 49. Kf5 {[%emt 0:02:29]} Kg8 {[%emt 0:01:47]} 50. Rb8+ {[%emt 0:01:53]} Kh7 {[%emt 0:00:19]} 51. Rb1 {[%emt 0:00:30]} Rf3+ {[%emt 0:00:29]} 52. Ke4 {[%emt 0:00:12]} Rh3 {[%emt 0:00:18]} 0-1

[Event "57th Biel Festival ATO 2024"]
[Site "Biel"]
[Date "2024.07.16"]
[Round "1.11"]
[White "Ribera Caro, Joan"]
[Black "Noel, Lucien"]
[Result "1-0"]
[ECO "A43"]
[WhiteElo "1920"]
[BlackElo "1714"]
[Annotator "NA"]
[PlyCount "63"]
[EventDate "2024.07.03"]
[EventType "swiss"]
[EventCountry "SUI"]
[SourceTitle "playchess.com"]
[Source "ChessBase"]
[SourceQuality "1"]
[TimeControl "40/5400+30:1800+30"]

1. d4 {[%emt 0:00:08]} Nf6 {[%emt 0:00:22]} 2. Nf3 {[%emt 0:00:20]} c5 {[%emt 0:00:22]} 3. d5 {[%emt 0:00:28]} b5 {[%emt 0:00:30]} 4. Bg5 {[%emt 0:01:34]} g6 {[%emt 0:01:41]} 5. Bxf6 {[%emt 0:07:47]} exf6 {[%emt 0:00:58]} 6. e4 {[%emt 0:06:27]} a6 {[%emt 0:05:00]} 7. a4 {[%emt 0:07:36]} b4 {[%emt 0:08:17]} 8. Bd3 {[%emt 0:07:49]} d6 {[%emt 0:00:51]} 9. h3 {[%emt 0:06:05]} Bg7 {[%emt 0:02:55]} 10. O-O {[%emt 0:04:17]} O-O {[%emt 0:03:02]} 11. c3 {[%emt 0:17:04]} bxc3 {[%emt 0:04:17]} 12. bxc3 {[%emt 0:01:10]} Nd7 {[%emt 0:01:02]} 13. Qc2 {[%emt 0:02:00]} Ne5 {[%emt 0:01:02]} 14. Nxe5 {[%emt 0:02:35]} fxe5 {[%emt 0:00:12]} 15. Nd2 {[%emt 0:01:07]} f5 {[%emt 0:03:19]} 16. Kh2 {[%emt 0:10:05]} Kh8 {[%emt 0:02:56]} 17. g3 {[%emt 0:02:09]} Qd7 {[%emt 0:06:50]} 18. Be2 {[%emt 0:01:41]} h5 {[%emt 0:05:01]} 19. Bf3 {[%emt 0:00:41]} fxe4 {[%emt 0:01:22]} 20. Bg2 {[%emt 0:00:17]} Qf7 {[%emt 0:03:05]} 21. Nxe4 {[%emt 0:04:18]} Bf5 {[%emt 0:01:00]} 22. Qe2 {[%emt 0:02:10]} Qe7 {[%emt 0:04:50]} 23. Rab1 {[%emt 0:01:39]} Bh6 {[%emt 0:02:08]} 24. Rb6 {[%emt 0:01:44]} Rfd8 {[%emt 0:10:43]} 25. Rxa6 {[%emt 0:01:08]} Kg7 {[%emt 0:10:35]} 26. Rb1 {[%emt 0:02:43]} Bg4 {[%emt 0:11:02]} 27. hxg4 {[%emt 0:03:30]} h4 {[%emt 0:00:07]} 28. a5 {[%emt 0:03:59]} hxg3+ {[%emt 0:00:30]} 29. Nxg3 {[%emt 0:01:16]} Bf4 {[%emt 0:02:10]} 30. Rxa8 {[%emt 0:00:34]} Rxa8 {[%emt 0:00:55]} 31. a6 {[%emt 0:00:37]} g5 {[%emt 0:00:33]} 32. Rb7 {[%emt 0:00:36]} 1-0

[Event "57th Biel Festival ATO 2024"]
[Site "Biel"]
[Date "2024.07.16"]
[Round "1.12"]
[White "Bachmann Daniel"]
[Black "Kuenzli, Simon"]
[Result "0-1"]
[ECO "B22"]
[WhiteElo "1713"]
[BlackElo "1919"]
[Annotator "RC"]
[PlyCount "170"]
[EventDate "2024.07.03"]
[EventType "swiss"]
[EventCountry "SUI"]
[SourceTitle "playchess.com"]
[Source "ChessBase"]
[SourceQuality "1"]
[TimeControl "40/5400+30:1800+30"]

1. e4 {[%emt 0:00:18]} c5 {[%emt 0:00:08]} 2. c3 {[%emt 0:00:08]} d5 {[%emt 0:00:07]} 3. exd5 {[%emt 0:00:06]} Qxd5 {[%emt 0:00:05]} 4. d4 {[%emt 0:00:10]} Nf6 {[%emt 0:00:13]} 5. Nf3 {[%emt 0:00:27]} e6 {[%emt 0:00:12]} 6. Na3 {[%emt 0:00:10]} Nc6 {[%emt 0:00:59]} 7. Nb5 {[%emt 0:01:41]} Qd8 {[%emt 0:00:40]} 8. dxc5 {[%emt 0:04:09]} Bxc5 {[%emt 0:00:55]} 9. Qxd8+ {[%emt 0:00:52]} Kxd8 {[%emt 0:00:08]} 10. Bf4 {[%emt 0:00:49]} a6 {[%emt 0:01:38]} 11. O-O-O+ {[%emt 0:02:19]} Ke7 {[%emt 0:00:14]} 12. Nbd4 {[%emt 0:01:52]} Nxd4 {[%emt 0:06:51]} 13. cxd4 {[%emt 0:02:17]} Ba7 {[%emt 0:03:50]} 14. Be2 {[%emt 0:02:56]} Nd5 {[%emt 0:01:30]} 15. Bg3 {[%emt 0:00:23]} Rd8 {[%emt 0:07:06]} 16. Kb1 {[%emt 0:03:25]} Bd7 {[%emt 0:01:07]} 17. Bc4 {[%emt 0:04:31]} Bc6 {[%emt 0:02:56]} 18. Ne5 {[%emt 0:00:24]} Rac8 {[%emt 0:00:46]} 19. Nxc6+ {[%emt 0:00:10]} Rxc6 {[%emt 0:00:13]} 20. Bb3 {[%emt 0:02:25]} Nc7 {[%emt 0:09:12]} 21. Rc1 {[%emt 0:15:21]} Rxc1+ {[%emt 0:11:23]} 22. Rxc1 {[%emt 0:00:02]} Nd5 {[%emt 0:01:16]} 23. Rc4 {[%emt 0:15:25]} Rd7 {[%emt 0:03:37]} 24. Kc1 {[%emt 0:05:11]} b5 {[%emt 0:02:45]} 25. Rc6 {[%emt 0:00:05]} Nb4 {[%emt 0:00:13]} 26. Rc8 {[%emt 0:01:12]} Bxd4 {[%emt 0:00:57]} 27. a3 {[%emt 0:01:35]} Nd3+ {[%emt 0:01:06]} 28. Kc2 {[%emt 0:01:01]} Bxf2 {[%emt 0:09:45]} 29. Bb8 {[%emt 0:04:12]} Ne1+ {[%emt 0:01:51]} 30. Kb1 {[%emt 0:00:44]} a5 {[%emt 0:06:26]} 31. a4 {[%emt 0:01:21]} bxa4 {[%emt 0:04:35]} 32. Bxa4 {[%emt 0:00:05]} Rd2 {[%emt 0:03:35]} 33. Be5 {[%emt 0:00:41]} f6 {[%emt 0:07:21]} 34. Bc3 {[%emt 0:03:24]} Rd5 {[%emt 0:01:47]} 35. Bb3 {[%emt 0:02:37]} Rg5 {[%emt 0:03:10]} 36. Ra8 {[%emt 0:02:09]} Nxg2 {[%emt 0:01:29]} 37. Bxa5 {[%emt 0:00:30]} Bd4 {[%emt 0:01:30]} 38. Bd2 {[%emt 0:04:01]} Rb5 {[%emt 0:03:00]} 39. Ka2 {[%emt 0:06:03]} Rb7 {[%emt 0:02:08]} 40. Ra6 {[%emt 0:00:00]} Ra7 {[%emt 0:00:00]} 41. Bb4+ {[%emt 0:03:05]} Kd7 {[%emt 0:03:44]} 42. Bxe6+ {[%emt 0:00:44]} Kc7 {[%emt 0:01:05]} 43. Rxa7+ {[%emt 0:07:00]} Bxa7 {[%emt 0:00:04]} 44. Kb3 {[%emt 0:04:15]} Nf4 {[%emt 0:02:53]} 45. Bg8 {[%emt 0:00:17]} h5 {[%emt 0:00:56]} 46. Kc2 {[%emt 0:01:03]} Bd4 {[%emt 0:00:46]} 47. b3 {[%emt 0:00:26]} Bg1 {[%emt 0:01:18]} 48. Bf8 {[%emt 0:02:43]} g5 {[%emt 0:01:20]} 49. Be7 {[%emt 0:06:29]} Bd4 {[%emt 0:06:06]} 50. Kd1 {[%emt 0:02:22]} h4 {[%emt 0:00:33]} 51. Ke1 {[%emt 0:01:26]} g4 {[%emt 0:01:02]} 52. Bh7 {[%emt 0:06:36]} g3 {[%emt 0:04:49]} 53. hxg3 {[%emt 0:00:09]} hxg3 {[%emt 0:00:10]} 54. Be4 {[%emt 0:00:18]} f5 {[%emt 0:01:05]} 55. Bf3 {[%emt 0:02:53]} g2 {[%emt 0:01:01]} 56. Bxg2 {[%emt 0:00:07]} Nxg2+ {[%emt 0:00:07]} 57. Ke2 {[%emt 0:00:32]} Nf4+ {[%emt 0:00:32]} 58. Kf3 {[%emt 0:00:17]} Nd5 {[%emt 0:01:02]} 59. Bg5 {[%emt 0:00:27]} Be5 {[%emt 0:01:07]} 60. Bd2 {[%emt 0:00:10]} Kc6 {[%emt 0:00:11]} 61. b4 {[%emt 0:01:09]} Kb5 {[%emt 0:00:31]} 62. Bg5 {[%emt 0:01:09]} Bc3 {[%emt 0:01:13]} 63. Bf4 {[%emt 0:01:00]} Bxb4 {[%emt 0:00:22]} 64. Bb8 {[%emt 0:01:31]} Kc4 {[%emt 0:00:31]} 65. Ba7 {[%emt 0:00:30]} Bd6 {[%emt 0:00:26]} 66. Bg1 {[%emt 0:00:23]} Nf6 {[%emt 0:00:38]} 67. Ke3 {[%emt 0:00:40]} Kd5 {[%emt 0:01:17]} 68. Kf3 {[%emt 0:00:08]} Ne4 {[%emt 0:00:27]} 69. Be3 {[%emt 0:00:23]} Be5 {[%emt 0:00:48]} 70. Bc1 {[%emt 0:00:24]} Bc3 {[%emt 0:01:12]} 71. Bh6 {[%emt 0:00:26]} Bd2 {[%emt 0:00:27]} 72. Bf8 {[%emt 0:01:25]} Ng5+ {[%emt 0:01:06]} 73. Kf2 {[%emt 0:01:05]} Ke4 {[%emt 0:00:11]} 74. Bd6 {[%emt 0:00:29]} Bf4 {[%emt 0:00:38]} 75. Be7 {[%emt 0:00:56]} Ne6 {[%emt 0:01:40]} 76. Bf6 {[%emt 0:01:24]} Be3+ {[%emt 0:00:30]} 77. Kg2 {[%emt 0:00:47]} f4 {[%emt 0:00:24]} 78. Bh4 {[%emt 0:00:36]} f3+ {[%emt 0:00:07]} 79. Kf1 {[%emt 0:00:36]} Nd4 {[%emt 0:01:05]} 80. Bg3 {[%emt 0:00:25]} Nb3 {[%emt 0:00:46]} 81. Be1 {[%emt 0:01:19]} Nd2+ {[%emt 0:00:14]} 82. Bxd2 {[%emt 0:00:24]} Bxd2 {[%emt 0:00:06]} 83. Kf2 {[%emt 0:00:12]} Kf4 {[%emt 0:00:16]} 84. Kf1 {[%emt 0:00:20]} Ke3 {[%emt 0:00:14]} 85. Kg1 {[%emt 0:00:22]} Ke2 {[%emt 0:00:07]} 0-1

[Event "57th Biel Festival ATO 2024"]
[Site "Biel"]
[Date "2024.07.16"]
[Round "1.13"]
[White "Aegerter, Fabrice"]
[Black "Panda, Gyorgy"]
[Result "1-0"]
[ECO "D02"]
[WhiteElo "1917"]
[BlackElo "1713"]
[Annotator "NA RC"]
[PlyCount "59"]
[EventDate "2024.07.03"]
[EventType "swiss"]
[EventCountry "SUI"]
[SourceTitle "playchess.com"]
[Source "ChessBase"]
[SourceQuality "1"]
[TimeControl "40/5400+30:1800+30"]

1. d4 {[%emt 0:00:04]} Nf6 {[%emt 0:00:20]} 2. Bf4 {[%emt 0:00:24]} d5 {[%emt 0:00:08]} 3. Nf3 {[%emt 0:00:27]} e6 {[%emt 0:01:19]} 4. e3 {[%emt 0:01:12]} c5 {[%emt 0:00:59]} 5. Nbd2 {[%emt 0:01:40]} Nc6 {[%emt 0:01:26]} 6. c3 {[%emt 0:01:37]} Be7 {[%emt 0:00:48]} 7. Bd3 {[%emt 0:00:57]} O-O {[%emt 0:02:16]} 8. Ne5 {[%emt 0:02:13]} Nxe5 {[%emt 0:06:15]} 9. dxe5 {[%emt 0:00:19]} Nd7 {[%emt 0:02:02]} 10. Qg4 {[%emt 0:04:49]} Re8 {[%emt 0:08:30]} 11. h4 {[%emt 0:04:59]} f5 {[%emt 0:09:23]} 12. Qe2 {[%emt 0:01:54]} Qc7 {[%emt 0:06:19]} 13. Nf3 {[%emt 0:07:37]} b6 {[%emt 0:02:17]} 14. g4 {[%emt 0:15:05]} Nf8 {[%emt 0:13:30]} 15. O-O-O {[%emt 0:06:57]} Bd7 {[%emt 0:07:46]} 16. gxf5 {[%emt 0:02:25]} c4 {[%emt 0:04:10]} 17. Bc2 {[%emt 0:02:33]} Bc5 {[%emt 0:04:10]} 18. f6 {[%emt 0:02:01]} g6 {[%emt 0:04:48]} 19. h5 {[%emt 0:01:54]} Red8 {[%emt 0:02:45]} 20. Rdg1 {[%emt 0:06:05]} Be8 {[%emt 0:00:46]} 21. hxg6 {[%emt 0:08:57]} hxg6 {[%emt 0:02:18]} 22. Bh6 {[%emt 0:02:15]} Rd7 {[%emt 0:00:25]} 23. Bxf8 {[%emt 0:00:43]} Bxf8 {[%emt 0:00:14]} 24. Bxg6 {[%emt 0:01:26]} Bxg6 {[%emt 0:00:15]} 25. Rxg6+ {[%emt 0:00:19]} Kf7 {[%emt 0:00:07]} 26. Ng5+ {[%emt 0:02:50]} Kxg6 {[%emt 0:01:21]} 27. Qh5+ {[%emt 0:00:11]} Kf5 {[%emt 0:00:05]} 28. Nf7+ {[%emt 0:00:14]} Ke4 {[%emt 0:00:16]} 29. Rh4+ {[%emt 0:00:09]} Kd3 {[%emt 0:00:11]} 30. Qd1# {[%emt 0:00:10]} 1-0

[Event "57th Biel Festival ATO 2024"]
[Site "Biel"]
[Date "2024.07.16"]
[Round "1.14"]
[White "Kim, Yejun"]
[Black "Dreke, Frank"]
[Result "1/2-1/2"]
[ECO "B04"]
[WhiteElo "1642"]
[BlackElo "1915"]
[Annotator "NA RC"]
[PlyCount "55"]
[EventDate "2024.07.03"]
[EventType "swiss"]
[EventCountry "SUI"]
[SourceTitle "playchess.com"]
[Source "ChessBase"]
[SourceQuality "1"]
[TimeControl "40/5400+30:1800+30"]

1. e4 {[%emt 0:00:02]} Nf6 {[%emt 0:00:01]} 2. e5 {[%emt 0:00:07]} Nd5 {[%emt 0:00:03]} 3. d4 {[%emt 0:00:26]} d6 {[%emt 0:00:02]} 4. Nf3 {[%emt 0:00:07]} dxe5 {[%emt 0:00:08]} 5. Nxe5 {[%emt 0:01:31]} c6 {[%emt 0:00:06]} 6. c4 {[%emt 0:01:13]} Nb4 {[%emt 0:02:01]} 7. Be3 {[%emt 0:00:47]} Bf5 {[%emt 0:00:52]} 8. Bd3 {[%emt 0:01:11]} Nxd3+ {[%emt 0:05:59]} 9. Nxd3 {[%emt 0:00:07]} g6 {[%emt 0:04:11]} 10. Nc3 {[%emt 0:02:12]} Bg7 {[%emt 0:01:26]} 11. Ne5 {[%emt 0:01:18]} O-O {[%emt 0:01:45]} 12. f4 {[%emt 0:04:23]} Nd7 {[%emt 0:08:08]} 13. O-O {[%emt 0:00:17]} Nxe5 {[%emt 0:06:47]} 14. fxe5 {[%emt 0:03:23]} c5 {[%emt 0:00:58]} 15. d5 {[%emt 0:06:42]} Bxe5 {[%emt 0:01:15]} 16. Bxc5 {[%emt 0:03:19]} Qc7 {[%emt 0:02:13]} 17. Bd4 {[%emt 0:00:24]} Bxh2+ {[%emt 0:01:33]} 18. Kh1 {[%emt 0:00:10]} Be5 {[%emt 0:14:06]} 19. c5 {[%emt 0:04:07]} Bxd4 {[%emt 0:03:34]} 20. Qxd4 {[%emt 0:00:06]} Rac8 {[%emt 0:03:51]} 21. g4 {[%emt 0:01:19]} Bd7 {[%emt 0:02:16]} 22. Ne4 {[%emt 0:00:27]} f5 {[%emt 0:20:23]} 23. d6 {[%emt 0:04:06]} Qc6 {[%emt 0:00:23]} 24. dxe7 {[%emt 0:01:39]} Rfe8 {[%emt 0:04:58]} 25. gxf5 {[%emt 0:01:56]} Rxe7 {[%emt 0:00:34]} 26. Qc4+ {[%emt 0:02:45]} Kh8 {[%emt 0:01:29]} 27. Qd4+ {[%emt 0:00:20]} Kg8 {[%emt 0:00:07]} 28. Qc4+ {[%emt 0:00:03]} 1/2-1/2

[Event "57th Biel Festival ATO 2024"]
[Site "Biel"]
[Date "2024.07.16"]
[Round "1.15"]
[White "Kalbermatter, Philipp"]
[Black "Sushrutha, Reddy"]
[Result "1-0"]
[ECO "B53"]
[WhiteElo "1912"]
[BlackElo "1649"]
[Annotator "NA RC"]
[PlyCount "59"]
[EventDate "2024.07.03"]
[EventType "swiss"]
[EventCountry "SUI"]
[SourceTitle "playchess.com"]
[Source "ChessBase"]
[SourceQuality "1"]
[TimeControl "40/5400+30:1800+30"]

1. e4 {[%emt 0:00:08]} c5 {[%emt 0:00:12]} 2. Nf3 {[%emt 0:00:19]} d6 {[%emt 0:00:30]} 3. d4 {[%emt 0:00:30]} cxd4 {[%emt 0:00:03]} 4. Qxd4 {[%emt 0:00:19]} Nc6 {[%emt 0:00:41]} 5. Bb5 {[%emt 0:00:56]} Bd7 {[%emt 0:00:17]} 6. Bxc6 {[%emt 0:01:06]} bxc6 {[%emt 0:01:12]} 7. c4 {[%emt 0:02:49]} Qb6 {[%emt 0:00:42]} 8. Be3 {[%emt 0:07:37]} c5 {[%emt 0:02:16]} 9. Qd2 {[%emt 0:01:04]} Rb8 {[%emt 0:01:02]} 10. b3 {[%emt 0:03:31]} g6 {[%emt 0:01:21]} 11. Qb2 {[%emt 0:17:51]} Nf6 {[%emt 0:03:07]} 12. e5 {[%emt 0:06:32]} Ng4 {[%emt 0:04:37]} 13. e6 {[%emt 0:04:09]} Bxe6 {[%emt 0:02:16]} 14. Qxh8 {[%emt 0:01:32]} Kd7 {[%emt 0:05:40]} 15. Qc3 {[%emt 0:03:07]} Nf6 {[%emt 0:01:18]} 16. Nbd2 {[%emt 0:05:09]} Bg7 {[%emt 0:00:03]} 17. Rd1 {[%emt 0:06:11]} Nh5 {[%emt 0:00:27]} 18. Qc1 {[%emt 0:01:01]} f5 {[%emt 0:00:19]} 19. Nb1 {[%emt 0:02:28]} Re8 {[%emt 0:08:58]} 20. O-O {[%emt 0:03:12]} Qa5 {[%emt 0:00:39]} 21. Qd2 {[%emt 0:01:08]} Qc7 {[%emt 0:01:17]} 22. Ng5 {[%emt 0:05:39]} Bg8 {[%emt 0:00:37]} 23. f4 {[%emt 0:00:50]} Nf6 {[%emt 0:01:02]} 24. Nc3 {[%emt 0:01:44]} h6 {[%emt 0:01:59]} 25. Nf3 {[%emt 0:00:18]} Ng4 {[%emt 0:00:44]} 26. h3 {[%emt 0:05:10]} Nxe3 {[%emt 0:00:30]} 27. Qxe3 {[%emt 0:00:10]} Kc8 {[%emt 0:00:57]} 28. Nb5 {[%emt 0:02:07]} Qd7 {[%emt 0:02:07]} 29. Rxd6 {[%emt 0:03:06]} exd6 {[%emt 0:02:03]} 30. Qxe8+ {[%emt 0:00:13]} 1-0

[Event "57th Biel Festival ATO 2024"]
[Site "Biel"]
[Date "2024.07.16"]
[Round "1.16"]
[White "Trubini, Timon"]
[Black "Leuenberger, Urs"]
[Result "1/2-1/2"]
[ECO "B22"]
[WhiteElo "1714"]
[BlackElo "1903"]
[Annotator "NA RC"]
[PlyCount "66"]
[EventDate "2024.07.03"]
[EventType "swiss"]
[EventCountry "SUI"]
[SourceTitle "playchess.com"]
[Source "ChessBase"]
[SourceQuality "1"]
[TimeControl "40/5400+30:1800+30"]

1. e4 {[%emt 0:00:04]} c5 {[%emt 0:00:27]} 2. c3 {[%emt 0:00:24]} d5 {[%emt 0:02:22]} 3. exd5 {[%emt 0:00:09]} Qxd5 {[%emt 0:00:12]} 4. d4 {[%emt 0:00:30]} e6 {[%emt 0:00:32]} 5. Nf3 {[%emt 0:00:34]} Nf6 {[%emt 0:01:44]} 6. Be3 {[%emt 0:04:22]} Ng4 {[%emt 0:04:14]} 7. g3 {[%emt 0:08:09]} Nxe3 {[%emt 0:09:48]} 8. fxe3 {[%emt 0:00:22]} Nc6 {[%emt 0:02:56]} 9. Bg2 {[%emt 0:03:16]} Qe4 {[%emt 0:06:03]} 10. Qe2 {[%emt 0:00:38]} cxd4 {[%emt 0:01:52]} 11. cxd4 {[%emt 0:06:58]} Qg6 {[%emt 0:09:05]} 12. O-O {[%emt 0:02:33]} Be7 {[%emt 0:01:03]} 13. Nbd2 {[%emt 0:03:10]} O-O {[%emt 0:00:43]} 14. Nc4 {[%emt 0:00:34]} f6 {[%emt 0:01:19]} 15. Rac1 {[%emt 0:07:27]} Bd7 {[%emt 0:05:24]} 16. Rfd1 {[%emt 0:12:01]} Qh5 {[%emt 0:03:45]} 17. Qc2 {[%emt 0:09:07]} Rac8 {[%emt 0:01:37]} 18. Qb3 {[%emt 0:01:00]} b6 {[%emt 0:08:25]} 19. e4 {[%emt 0:07:19]} Na5 {[%emt 0:03:01]} 20. Nxa5 {[%emt 0:00:51]} Qxa5 {[%emt 0:00:15]} 21. Bh3 {[%emt 0:03:25]} Rce8 {[%emt 0:10:38]} 22. Bxe6+ {[%emt 0:01:35]} Bxe6 {[%emt 0:00:12]} 23. Qxe6+ {[%emt 0:00:05]} Kh8 {[%emt 0:00:09]} 24. Qb3 {[%emt 0:03:35]} Bd8 {[%emt 0:04:01]} 25. e5 {[%emt 0:04:41]} fxe5 {[%emt 0:07:25]} 26. Nxe5 {[%emt 0:00:07]} Rxe5 {[%emt 0:00:18]} 27. dxe5 {[%emt 0:02:17]} Qxe5 {[%emt 0:00:17]} 28. Qc3 {[%emt 0:01:54]} Qe6 {[%emt 0:04:29]} 29. Rf1 {[%emt 0:01:40]} Bf6 {[%emt 0:01:36]} 30. Qa3 {[%emt 0:01:05]} Bd4+ {[%emt 0:00:30]} 31. Kg2 {[%emt 0:01:22]} Qe2+ {[%emt 0:00:47]} 32. Kh3 {[%emt 0:01:52]} Qh5+ {[%emt 0:00:15]} 33. Kg2 {[%emt 0:00:09]} Qe2+ {[%emt 0:00:44]} 1/2-1/2

[Event "57th Biel Festival ATO 2024"]
[Site "Biel"]
[Date "2024.07.16"]
[Round "1.17"]
[White "Voet, Dirk"]
[Black "Cho, Yeonhee"]
[Result "0-1"]
[ECO "A00"]
[WhiteElo "1869"]
[BlackElo "1686"]
[Annotator "NA RC"]
[PlyCount "46"]
[EventDate "2024.07.03"]
[EventType "swiss"]
[EventCountry "SUI"]
[SourceTitle "playchess.com"]
[Source "ChessBase"]
[SourceQuality "1"]
[TimeControl "40/5400+30:1800+30"]

1. g3 {[%emt 0:00:20]} e5 {[%emt 0:00:40]} 2. Bg2 {[%emt 0:00:59]} d5 {[%emt 0:01:13]} 3. d3 {[%emt 0:00:10]} Be7 {[%emt 0:01:04]} 4. b3 {[%emt 0:01:17]} Nc6 {[%emt 0:01:52]} 5. Bb2 {[%emt 0:00:11]} Nf6 {[%emt 0:09:06]} 6. Nd2 {[%emt 0:01:17]} Be6 {[%emt 0:03:26]} 7. c4 {[%emt 0:01:10]} O-O {[%emt 0:05:07]} 8. e3 {[%emt 0:05:34]} Nb4 {[%emt 0:06:25]} 9. Qb1 {[%emt 0:08:43]} dxc4 {[%emt 0:15:59]} 10. dxc4 {[%emt 0:00:07]} Qd3 {[%emt 0:02:55]} 11. a3 {[%emt 0:15:56]} Rfd8 {[%emt 0:12:03]} 12. Ngf3 {[%emt 0:01:25]} Nc2+ {[%emt 0:01:05]} 13. Kd1 {[%emt 0:00:27]} Nxa1 {[%emt 0:00:22]} 14. Qxd3 {[%emt 0:00:31]} Rxd3 {[%emt 0:00:08]} 15. Nxe5 {[%emt 0:00:40]} Rd6 {[%emt 0:01:59]} 16. Bxa1 {[%emt 0:00:12]} Ng4 {[%emt 0:02:28]} 17. Nxg4 {[%emt 0:00:13]} Bxg4+ {[%emt 0:00:06]} 18. f3 {[%emt 0:00:06]} Rad8 {[%emt 0:02:51]} 19. Bc3 {[%emt 0:00:55]} Bf5 {[%emt 0:01:46]} 20. e4 {[%emt 0:00:53]} Rd3 {[%emt 0:02:51]} 21. Kc2 {[%emt 0:00:53]} Bf6 {[%emt 0:01:30]} 22. Bxf6 {[%emt 0:01:01]} Rxd2+ {[%emt 0:00:18]} 23. Kc1 {[%emt 0:00:04]} gxf6 {[%emt 0:00:10]} 0-1